Cogmind - Beta 15 @@@ ROGUE MODE // 2025.07.09 @ 11:00:18 Player: Sgt. Smokeweed Result: Self-destructed Performance ------------- Evolutions (3) 1500 Regions Visited (7) 1400 Robots Destroyed (36) 180 Value Destroyed (887) 887 Prototype IDs (24) 480 Alien Tech Used (0) 0 Bonus (800) 800 TOTAL SCORE: 5247 Bonus ------- Entered DSFs 500 Aligned with FarCom 300 Cogmind --------- Core Integrity 532/700 Matter 269/300 Energy 280/280 System Corruption 0% Temperature Cool (0) Movement Core (200) Ox3 Location -7/DSF Parts ------- > --- POWER (3) -------- Heavy Ion Engine > --- PROPULSION (4) --- (None) > --- UTILITY (4) ------ (None) > --- WEAPON (2) ------- Katana > --- INVENTORY (5) ---- Cryofiber Web EM Shotgun Heavy Mace Great Axe Great Axe Peak State ------------ > --- POWER ------------ Heavy Ion Engine Nuclear Core Light Nuclear Core > --- PROPULSION ------- Gravmag System Surge Thruster Surge Thruster Surge Thruster > --- UTILITY ---------- Cloak of Protection > --- WEAPON ----------- Katana > --- INVENTORY -------- Cryofiber Web EM Shotgun Heavy Mace Great Axe Great Axe [Rating: 34] Favorites ----------- Power Ion Engine Engine Ion Engine Power Core Nuclear Core Propulsion Light Treads Treads Light Treads Leg Aluminum Leg Wheel Wheel Hover Unit Gravmag System Flight Unit Flight Unit Utility Shield Generator Device Shield Generator Weapon Katana Energy Gun Small Laser Energy Cannon Ion Cannon Ballistic Gun Assault Rifle Ballistic Cannon Flak Cannon Slashing Weapon Katana Build | -11 -10 -10 -10 -9 -8 -7 -7 ------- Run | Yrd Mat Min Exi Min Mat Fac DSF Slots Evolved 6 | . . . . . 4 2 . Power 2 | . . . . . . 2 . Propulsion 2 | . . . . . 2 . . Utility 2 | . . . . . 2 . . Weapon . | . . . . . . . . Parts Attached 38 | 5 2 1 1 1 21 2 5 Power 5 | 1 . . . . 3 . 1 Engine 3 | 1 . . . . 2 . . Core 2 | . . . . . 1 . 1 Reactor . | . . . . . . . . Propulsion 22 | 2 . . . . 14 2 4 Treads 8 | 2 . . . . 6 . . Leg 2 | . . . . . 2 . . Wheel 4 | . . . . . 4 . . Hover 3 | . . . . . 1 2 . Flight 5 | . . . . . 1 . 4 Utility 2 | . 1 . 1 . . . . Device 2 | . 1 . 1 . . . . Storage . | . . . . . . . . Processor . | . . . . . . . . Hackware . | . . . . . . . . Protection . | . . . . . . . . Artifact . | . . . . . . . . Weapon 9 | 2 1 1 . 1 4 . . Energy Gun 2 | 1 . . . . 1 . . Energy Cannon 2 | . . . . 1 1 . . Ballistic Gun 3 | 1 1 1 . . . . . Ballistic Cannon 1 | . . . . . 1 . . Launcher . | . . . . . . . . Special Weapon . | . . . . . . . . Impact Weapon . | . . . . . . . . Slashing Weapon 1 | . . . . . 1 . . Piercing Weapon . | . . . . . . . . Special Melee Weapon . | . . . . . . . . Unidentified Prototypes 1 | . . . . . 1 . . Parts Lost 19 | . . . . . 10 . 9 Power 4 | . . . . . 2 . 2 Propulsion 10 | . . . . . 4 . 6 Utility 2 | . . . . . 1 . 1 Weapon 3 | . . . . . 3 . . Highest Loss Streak 7 | . . . . . 7 . 7 To Critical Strikes 1 | . . . . . . . 1 Average Backups 2 | . . . . 1 2 2 4 Power . | . . . . . . . . Propulsion . | . . . . . . . . Utility 1 | . . . . 1 1 1 1 Weapon . | . . . . . . 1 3 Tool/Special . | . . . . . . . . Unused Backups 4 | . . . . . . . 4 Power . | . . . . . . . . Propulsion . | . . . . . . . . Utility 1 | . . . . . . . 1 Weapon 3 | . . . . . . . 3 Tool/Special . | . . . . . . . . Average Slot Usage (%) 62 | . 84 85 85 85 48 58 48 Engine 8 | . 14 14 14 14 5 7 7 Core 2 | . . . . . 2 6 7 Treads 19 | . 28 28 28 28 15 22 . Wheel 2 | . . . . . 4 . . Hover 1 | . . . . . . 6 13 Flight 1 | . . . . . 1 . 5 Device 6 | . 13 14 14 14 1 7 5 Energy Gun 1 | . 9 . . . . . . Energy Cannon 1 | . . . . 12 1 . . Ballistic Gun 8 | . 18 28 28 16 1 . . Ballistic Cannon 3 | . . . . . 6 . . Slashing Weapon 3 | . . . . . 5 7 7 Peak Build Rating 34 | 5 7 7 15 13 26 33 34 Average Rating 14 | 3 6 7 7 7 15 31 24 On Entrance 10 | . 5 7 7 7 7 23 27 Naked Turns 4 | . . . . . 4 . . Heaviest Build 30 | 8 10 10 10 12 23 25 30 Greatest Support 112 | 40 40 40 40 40 112 112 25 Greatest Overweight (x) 9 | . . . . . 5 2 9 Average Overweight (x) . | . . . . . . . . Largest Inventory Capacity 5 | 5 5 5 5 5 5 5 5 Average Capacity 5 | 5 5 5 5 5 5 5 5 Most Carried 5 | . . 1 1 2 5 4 5 Average Carried 2 | . . . . 1 3 2 4 Final Capacity 5 | 5 5 5 5 5 5 5 5 Final Carried 5 | . . . 1 1 5 2 5 Class Distribution -------------------- 93% | Mutant 6% | Scavenger-Mutant Dominant Class ---------------- Mutant | -10/Materials Mutant | -10/Mines Mutant | -10/Exiles Mutant | -9/Mines Mutant | -8/Materials Mutant | -7/Factory Mutant | -7/DSF Resources | -11 -10 -10 -10 -9 -8 -7 -7 ----------- Run | Yrd Mat Min Exi Min Mat Fac DSF Matter Collected 982 | 193 128 35 . 49 516 . 61 Remotely . | . . . . . . . . Salvage Created 1108 | . 239 35 . . 616 . 218 Parts 80 | . 11 4 . . 43 . 22 Haulers Intercepted 3 | . 1 . . . 2 . . Recyclers Shooed 1 | . 1 . . . . . . Parts Field Recycled . | . . . . . . . . Retrieved Matter . | . . . . . . . . Parts Self-Destructed . | . . . . . . . . Prevented . | . . . . . . . . Kills | -11 -10 -10 -10 -9 -8 -7 -7 ------- Run | Yrd Mat Min Exi Min Mat Fac DSF Combat Hostiles Destroyed 25 | . 4 3 . . 11 . 7 Melee 9 | . . . . . 2 . 7 Guns 10 | . 4 3 . . 3 . . Cannons 6 | . . . . . 6 . . Classes Destroyed 9 | . 3 1 . . 3 . 2 Worker 5 | . 1 . . . 4 . . Tunneler 1 | . . . . . 1 . . Hauler 3 | . 1 . . . 2 . . Watcher 2 | . . . . . 2 . . Swarmer 9 | . . 3 . . 3 . 3 Cutter 2 | . . . . . . . 2 Grunt 8 | . 4 . . . 4 . . Sentry 4 | . . . . . 4 . . Specialist 2 | . . . . . . . 2 Best Kill Streak 5 | . 4 3 . . 4 . 5 Combat Bots Only 5 | . 2 3 . . 3 . 5 Max Kills in Single Turn 1 | . 1 1 . . 1 . 1 Gunslinging . | . . . . . . . . Exploded . | . . . . . . . . Melee 1 | . . . . . 1 . 1 Uniques/NPCs Destroyed . | . . . . . . . . Combat | -11 -10 -10 -10 -9 -8 -7 -7 -------- Run | Yrd Mat Min Exi Min Mat Fac DSF Hostile Shots Fired 309 | . 49 13 . . 142 . 105 Missed 90 | . 17 4 . . 37 . 32 Hits 219 | . 32 9 . . 105 . 73 Melee 9 | . . . . . . . 9 Projectile 210 | . 32 9 . . 105 . 64 AOE 3 | . . . . . 1 . 2 Critical Strikes 8 | . . . . . 3 . 5 Damage Taken 3056 | . 315 53 . . 1638 . 1050 Core 623 | . 100 11 . . 344 . 168 Absorbed by Shields 217 | . 120 22 . . 75 . . Core Remaining (%) 64 | 100 . . . 55 37 . . Volleys Fired 98 | . 35 5 . . 58 . . Largest 2 | . 2 2 . . 2 . . Hottest 82 | . 60 40 . . 82 . . Shots Fired 146 | . 68 10 . . 68 . . Gun 101 | . 68 10 . . 23 . . Cannon 45 | . . . . . 45 . . Launcher . | . . . . . . . . Special . | . . . . . . . . Kinetic 110 | . 56 10 . . 44 . . Thermal 21 | . 12 . . . 9 . . Explosive . | . . . . . . . . Electromagnetic 15 | . . . . . 15 . . Robot Hit Streak 11 | . 11 3 . . 8 . . Robot Miss Streak 10 | . 5 2 . . 10 . . Penetration Max . | . . . . . . . . Secondary Targets 2 | . 1 1 . . . . . Max Gunslinging Chain 1 | . 1 1 . . . . . Shots Hit Robots 127 | . 40 5 . . 67 . 15 Core Hits 75 | . 14 3 . . 52 . 6 Critical Kills . | . . . . . . . . Critical Parts Destroyed . | . . . . . . . . Critical Strikes 2 | . . . . . . . 2 Sever 2 | . . . . . . . 2 Melee Attacks 37 | . . . . . 14 3 20 Impact . | . . . . . . . . Slashing 37 | . . . . . 14 3 20 Piercing . | . . . . . . . . Sneak Attacks 5 | . . . . . 5 . . Combat Hostiles . | . . . . . . . . Follow-up Attacks . | . . . . . . . . Damage Inflicted 2511 | . 522 57 . . 1469 . 463 Guns 778 | . 522 57 . . 199 . . Cannons 708 | . . . . . 708 . . Explosions . | . . . . . . . . Melee 1014 | . . . . . 551 . 463 Ramming 11 | . . . . . 11 . . Kinetic 1173 | . 464 57 . . 652 . . Thermal 195 | . 58 . . . 137 . . Explosive . | . . . . . . . . Electromagnetic 118 | . . . . . 118 . . Impact . | . . . . . . . . Slashing 1014 | . . . . . 551 . 463 Piercing . | . . . . . . . . Highest Corruption 1 | . . . . . 1 . . Average Corruption 1 | . . . . . 1 . . Corruption Purged . | . . . . . . . . Corruption Blocked . | . . . . . . . . Overload Shots . | . . . . . . . . Overflow Damage 48 | . . . . . 23 . 25 Projectiles . | . . . . . . . . Explosions . | . . . . . . . . Melee 48 | . . . . . 23 . 25 Knockbacks 8 | . . . . . 8 . . Impact 1 | . . . . . 1 . . Kinetic 7 | . . . . . 7 . . Secondary . | . . . . . . . . Self-Inflicted Damage . | . . . . . . . . Shots . | . . . . . . . . Rammed . | . . . . . . . . Targets Rammed 8 | . . . . . 8 . . Kicked 8 | . . . . . 8 . . Crushed . | . . . . . . . . Highest Temperature 90 | . 12 . . . 90 . . Average Temperature 25 | . 7 . . . 32 . . Received Heat Transfer 665 | . 164 . . . 501 . . Siege Activations . | . . . . . . . . Martial Activations . | . . . . . . . . Shielding Activations . | . . . . . . . . Robots Disrupted . | . . . . . . . . Combat Hostiles . | . . . . . . . . Robots Corrupted . | . . . . . . . . Combat Hostiles . | . . . . . . . . Parts Fried . | . . . . . . . . Impact Corruptions . | . . . . . . . . Robots Melted . | . . . . . . . . Combat Hostiles . | . . . . . . . . Parts Melted 3 | . . . . . 3 . . Heat Transferred 347 | . 125 . . . 222 . . Parts Sabotaged . | . . . . . . . . Parts Stolen . | . . . . . . . . Parts Stripped . | . . . . . . . . Power Chain Reactions . | . . . . . . . . Alert | -11 -10 -10 -10 -9 -8 -7 -7 ------- Run | Yrd Mat Min Exi Min Mat Fac DSF Maximum Alert Level . | . . . . . . . . Low Security (%) 100 | 100 100 100 . 100 100 100 100 Level 1 . | . . . . . . . . Level 2 . | . . . . . . . . Level 3 . | . . . . . . . . Level 4 . | . . . . . . . . Level 5 . | . . . . . . . . High Security . | . . . . . . . . Max Security . | . . . . . . . . Peak Influence 115 | . 75 95 . . 106 15 115 Initial 25 | . . 25 . . . . . Average 19 | . 11 65 . . 21 . 35 Influence Increases 737 | . 112 70 . . 353 17 185 Destroy 0b10 Robot/C 500 | . 80 60 . . 220 . 140 Destroy 0b10 Robot/NC 55 | . 10 . . . 45 . . Destroy Leader 130 | . 22 10 . . 68 . 30 Successful Hack 4 | . . . . . 4 . . Disable Machine 15 | . . . . . . 15 . Destroy Structure 3 | . . . . . 1 2 . Partial Spotted 15 | . . . . . 15 . . Lose Combat Pursuer 15 | . . . . . . . 15 Influence Decreases 622 | . 47 100 35 . 353 17 70 Entered New Map 75 | . . 40 35 . . . . Time Decay 424 | . 47 60 . . 300 17 . Lost Part 120 | . . . . . 50 . 70 Purge Threat 3 | . . . . . 3 . . Squads Dispatched 6 | . 1 . . . 2 1 2 Investigation . | . . . . . . . . Extermination 1 | . . . . . . 1 . Reinforcement 5 | . 1 . . . 2 . 2 Assault . | . . . . . . . . Garrison . | . . . . . . . . Intercept . | . . . . . . . . Searches Triggered . | . . . . . . . . Construction Impeded . | . . . . . . . . Haulers Reinforced . | . . . . . . . . Active Scanning Responses . | . . . . . . . . Cargo Convoy Interrupts . | . . . . . . . . Stealth | -11 -10 -10 -10 -9 -8 -7 -7 --------- Run | Yrd Mat Min Exi Min Mat Fac DSF Distress Signals 2 | . 1 . . . 1 . . Communications Jammed . | . . . . . . . . Distress Signals . | . . . . . . . . Times Spotted 44 | . 10 3 . . 23 . 8 Peak Tracking Total 5 | . 5 2 . . 5 . 4 Tactical Retreats 1 | . . . . . . . 1 Traps | -11 -10 -10 -10 -9 -8 -7 -7 ------- Run | Yrd Mat Min Exi Min Mat Fac DSF Traps Triggered 1 | . . . . . 1 . . Indirectly . | . . . . . . . . Trap Hack Attempts . | . . . . . . . . Triggered . | . . . . . . . . Disarmed . | . . . . . . . . Reprogrammed . | . . . . . . . . Reused . | . . . . . . . . Traps Extracted . | . . . . . . . . Installed . | . . . . . . . . Triggered . | . . . . . . . . Machines | -11 -10 -10 -10 -9 -8 -7 -7 ---------- Run | Yrd Mat Min Exi Min Mat Fac DSF Machines Disabled 1 | . . . . . . 1 . Max in Single Turn 1 | . . . . . . 1 . Garrison Access 1 | . . . . . 1 . . Machines Repaired . | . . . . . . . . Machines Dismantled . | . . . . . . . . Machines Sabotaged . | . . . . . . . . Overloaded Fab Kills . | . . . . . . . . Hacking | -11 -10 -10 -10 -9 -8 -7 -7 --------- Run | Yrd Mat Min Exi Min Mat Fac DSF Machines Accessed 5 | . . . 1 . 3 1 . Terminals 3 | . . . . . 2 1 . Fabricators . | . . . . . . . . Repair Stations . | . . . . . . . . Recycling Units . | . . . . . . . . Scanalyzers . | . . . . . . . . Garrison Access 1 | . . . . . 1 . . Total Hacks 10 | . . . 1 . 7 2 . Successful 5 | . . . 1 . 3 1 . Failed 5 | . . . . . 4 1 . Catastrophic 1 | . . . . . 1 . . Database Lockouts . | . . . . . . . . Manual 1 | . . . 1 . . . . Terminals 7 | . . . . . 5 2 . Fabricators . | . . . . . . . . Repair Stations . | . . . . . . . . Recycling Units . | . . . . . . . . Scanalyzers . | . . . . . . . . Garrison Access 2 | . . . . . 2 . . Terminal Hacks 4 | . . . 1 . 2 1 . Open DSF 1 | . . . . . . 1 . Unreport Threat 1 | . . . . . 1 . . Locate Traps 1 | . . . . . 1 . . Proto ID Catalog 1 | . . . 1 . . . . Fabricator Hacks . | . . . . . . . . Repair Station Hacks . | . . . . . . . . Recycling Unit Hacks . | . . . . . . . . Scanalyzer . | . . . . . . . . Garrison Access Hacks 1 | . . . . . 1 . . Seal Access 1 | . . . . . 1 . . Unauthorized Hacks . | . . . . . . . . Terminals . | . . . . . . . . Fabricators . | . . . . . . . . Repair Stations . | . . . . . . . . Recycling Units . | . . . . . . . . Scanalyzers . | . . . . . . . . Garrison Access . | . . . . . . . . Data Cores Recovered . | . . . . . . . . Used . | . . . . . . . . Hacking Detections 2 | . . . . . 1 1 . Full Trace Events . | . . . . . . . . Feedback Events . | . . . . . . . . Feedback Blocked . | . . . . . . . . Robot Schematics Acquired . | . . . . . . . . Robots Built . | . . . . . . . . Authchips . | . . . . . . . . Time . | . . . . . . . . Total Robot Build Rating . | . . . . . . . . Part Schematics Acquired . | . . . . . . . . Parts Built . | . . . . . . . . Authchips . | . . . . . . . . Time . | . . . . . . . . Total Part Build Rating . | . . . . . . . . Parts Repaired . | . . . . . . . . Time . | . . . . . . . . Parts Recycled . | . . . . . . . . Recycled Matter . | . . . . . . . . Retrieved Matter . | . . . . . . . . Retrieved Components . | . . . . . . . . Parts Scanalyzed . | . . . . . . . . Part Schematics Acquired . | . . . . . . . . Parts Damaged . | . . . . . . . . Bothacking | -11 -10 -10 -10 -9 -8 -7 -7 ------------ Run | Yrd Mat Min Exi Min Mat Fac DSF Used RIF Installer . | . . . . . . . . Robots Hacked . | . . . . . . . . Non-combat . | . . . . . . . . Combat . | . . . . . . . . Robot Hacks Applied . | . . . . . . . . Relay Couplers Released . | . . . . . . . . Fabnet Peak Effective % . | . . . . . . . . Robots Rewired . | . . . . . . . . Allies Hacked . | . . . . . . . . Hacks Repelled . | . . . . . . . . Allies | -11 -10 -10 -10 -9 -8 -7 -7 -------- Run | Yrd Mat Min Exi Min Mat Fac DSF Total Allies . | . . . . . . . . Largest Group . | . . . . . . . . Highest-Rated Group . | . . . . . . . . Highest-Rated Ally . | . . . . . . . . Total Orders . | . . . . . . . . Ally Attacks . | . . . . . . . . Total Damage . | . . . . . . . . Kills . | . . . . . . . . Allies Corrupted . | . . . . . . . . Allies Melted . | . . . . . . . . Intel | -11 -10 -10 -10 -9 -8 -7 -7 ------- Run | Yrd Mat Min Exi Min Mat Fac DSF Active Infowar (turns) 442 | . . . 1 2 55 248 136 Cloaking 442 | . . . 1 2 55 248 136 Robot Analysis Total . | . . . . . . . . Derelict Logs Recovered 2 | . . 1 . 1 . . . Drone Launches . | . . . . . . . . Drone Recoveries . | . . . . . . . . Exploration | -11 -10 -10 -10 -9 -8 -7 -7 ------------- Run | Yrd Mat Min Exi Min Mat Fac DSF Turns Passed 2677 | 68 300 122 353 130 1285 248 171 Spaces Moved 1456 | 46 124 67 220 79 661 164 95 Core 19 | 12 . . . . 7 . . Treads 879 | 34 124 67 220 79 302 53 . Legs 64 | . . . . . 64 . . Wheels 209 | . . . . . 209 . . Hover 191 | . . . . . . 111 80 Flight 94 | . . . . . 79 . 15 Fastest Speed 40 | 50 160 160 160 160 40 52 52 Average Speed 135 | 131 160 160 160 160 138 87 77 Slowest Speed 440 | 160 160 160 160 160 440 220 395 Overloaded Moves . | . . . . . . . . Propulsion Burnouts . | . . . . . . . . Robots Hopped 1 | . . . . . 1 . . Potential Cave-ins . | . . . . . . . . Cave-ins Triggered . | . . . . . . . . Exploration Rate (%) 28 | 4 25 11 60 20 44 3 58 Regions Visited 7 Branch Regions 3 Pre-discovered Areas 3 | . . 2 . 1 . . . Known Exits Taken 1 | . . . . . . 1 . Unknown Exits Taken 6 | 1 1 1 1 1 1 . . Scrap Searched 1 | . . . . 1 . . . Spaces Dug 2 | . . . . . . 2 . Terrain Destroyed 3 | . . . . . 1 2 . Melee 2 | . . . . . . 2 . Projectile 1 | . . . . . 1 . . AOE . | . . . . . . . . Terrain Rammed . | . . . . . . . . Walls Destroyed . | . . . . . . . . Machines Disabled . | . . . . . . . . Actions | -11 -10 -10 -10 -9 -8 -7 -7 --------- Run | Yrd Mat Min Exi Min Mat Fac DSF Total 1944 | 51 161 73 221 83 933 263 159 Wait 267 | 1 . . . . 146 88 32 Move 1447 | 45 123 66 219 78 658 163 95 Hop 1 | . . . . . 1 . . Pick Up 8 | . . . . . 5 . 3 Fast Attach 37 | 5 2 . 1 1 18 2 8 Attach 9 | . . . . 1 5 3 . Detach 7 | . . . 1 1 5 . . Swap 7 | . . 1 . 1 5 . . Drop 18 | . 1 1 . 1 10 4 1 Fire 98 | . 35 5 . . 58 . . Melee 37 | . . . . . 14 3 20 Ram . | . . . . . . . . Kick 8 | . . . . . 8 . . Crush . | . . . . . . . . Escape Stasis . | . . . . . . . . Rewire . | . . . . . . . . Trap . | . . . . . . . . Miscellaneous . | . . . . . . . . Route ------- -11/Scrapyard -10/Materials -10/Mines -10/Exiles -9/Mines -8/Materials -7/Factory -7/DSF (discovered 1 exit: [*Fac]) History --------- Turn | Location | Event 2 | -11/Scrapyard | Met Revision 17 8 | -11/Scrapyard | Discovered new exit (range 15) 69 | -11/Scrapyard | Entered Materials 70 | -10/Materials | Met a group of wandering Federalists 215 | -10/Materials | Discovered new exit (range 14) 312 | -10/Materials | Build established: Mutant 369 | -10/Materials | Entered Mines 413 | -10/Mines | Learned location of Zion (-6) 417 | -10/Mines | Learned location of Storage (-7) 480 | -10/Mines | Deemed a non-threat by the Exiles lab entrance 481 | -10/Mines | Discovered new exit (range 5) 491 | -10/Mines | Entered Exiles 536 | -10/Exiles | Met 8R-AWN 562 | -10/Exiles | Met EX-HEX 623 | -10/Exiles | Met EX-BIN 640 | -10/Exiles | Aligned with FarCom system 642 | -10/Exiles | Given EX-Vault access code 679 | -10/Exiles | Opened EX-Vault 690 | -10/Exiles | Found Cloak of Protection 727 | -10/Exiles | Warned to stay clear of 0b10 Research branches 772 | -10/Exiles | Met EX-DEC 829 | -10/Exiles | Discovered new exit (range 10) 844 | -10/Exiles | Left Exiles lab with Cloak of Protection 844 | -10/Exiles | Entered Mines 886 | -9/Mines | Met a Derelict bent on vengeance 953 | -9/Mines | Discovered new exit (range 11) 974 | -9/Mines | Entered Materials 974 | -8/Materials | Evolved 4 slots: Propulsion x2, Utility x2 1231 | -8/Materials | Lost 7 parts (1p3n1u2w) 2242 | -8/Materials | Discovered new exit (range 3) 2252 | -8/Materials | Core integrity fell below 50% 2259 | -8/Materials | Entered Factory 2259 | -7/Factory | Evolved 2 slots: Power x2 2507 | -7/Factory | Identified exit to DSF 2507 | -7/Factory | Entered DSF 2547 | -7/DSF | Additional patrols routed to DSF 2581 | -7/DSF | Discovered new exit (range 12) 2678 | -7/DSF | Self-destructed Last Messages --------------- S-27 Virus unfolds itself. Dropped Gravmag System. Acquired Surge Thruster. S-27 Virus Lgt. Nuclear Core severed. ALERT: Suspicious intruders detected, dispatching Specialist reinforcements to area. S-27 Virus destroyed. S-27 Virus Autogun severed. Lgt. Nuclear Core destroyed. Acquired 26 matter. Surge Thruster destroyed. Critical hit (Destroy). Cloak of Protection destroyed. Surge Thruster destroyed. S-27 Virus destroyed. Surge Thruster destroyed. Nuclear Core destroyed. X-57 Shotgunner destroyed. Surge Thruster destroyed. X-57 Shotgunner destroyed. Map ----- +----------------------------------------------------+ | ""##"????? | | """""????? | | # # ### ###///# ## ""###????? | | # # #?# #?#///#//### ###??????? | | ########!! !!########## ##???????? | | #??????#!! !!#??????# / /#???????? | | #??????#!! !!#??????#// /#???????? | | #??????### ###??????### ##???????? | | #????????[ !????????# #???????? | | #????????[ !????????# #???????? | | #???????[[ !!???????# #???????? | | #???????## ###???###### ###??????? | | ?????????# #?#!!?#///?# !!#??????? | | ?????????? ##!!!#///## !#??????? | | ??????????? ^ !#??????? | | ???????????H #??????? | | ?????????? ^^ [/#??????? | | !???????????? ##!!!# ##[%*!#??????? | | !!?????????????#!??# ?#* ==#??????? | | ?##????????????????###### %###??????? | | ??????????????????????#!!=!!#???????? | | ??????????????????????#!!%[!#???????? | | ??????????????????????#!!=%!#???????? | | ??????????????????????###[*##???????? | | ??????????????????????# [=!#???????? | | ??????????????????????# @!!#???????? | | ??????????????????????###%!##???????? | | ????????????????????????#[ #????????? | | ???????????????????????? "????????? | | ???????????????????????? ""???????? | | ???????????????????????? <""#??????? | | ????????????????????????"""""#??????? | | ???????????????????????#"""""???????? | | ???????????????????????##"###???????? | | ?????????????????????????"??????????? | | ????????????????????????????????????? | | ????????????????????????????????????? | | ????????????????????????????????????? | | ????????????????????????????????????? | | ????????????????????????????????????? | | ????????????????????????????????????? | | | | | | | | | | | | | | | | | | | +----------------------------------------------------+ Best States ------------- Heat Dissipation 34 Energy Generation 32 Energy Capacity 480 Matter Stores 300 Matter Capacity 300 Sight Range 16 Terrain Scan Density 10 Cloak Strength 5 Evasion (%) 62 Recoil Reduction 4 Item Schematics ----------------- None Robot Schematics ------------------ None Fabricated ------------ Nothing Repaired ---------- Nothing Alien Tech Used ----------------- None Achievements -------------- None Challenges ------------ None Game ------ Seed ContainmentPhasePlating Manual? 0 Play Time 00:19:26 Cumulative 83.6 hours Start 2025.05.13 @ 14:11:09 End 2025.07.09 @ 11:00:18 Sessions 6 Manual Loads 0 Difficulty Rogue Special Mode None Game No. 218 Rogue 143 Adventurer 75 Explorer 0 Win Type - Total 0 Types 0/0/0/0/0/0/0/0/0/0 Lore% 40 Gallery% 40 Achievement% 35 Wizard Run 0 Options --------- Layout 1 ASCII 0 Keyboard 0 Movement Mouse Keybinds 0 Fullscreen 1 Font 32/SmallcapsGlow Map View 50x35 Zoom Use 0% Tactical HUD 0 Map Filters NONE Filters NONE Steam 1 RUN: 4da0591b-dbe1-4670-bcac-1c7873a560bd